Cogmind - Beta 13 *** ADVENTURER MODE // 2024.08.01 @ 21:06:00 Player: Jefffff Result: Self-destructed Performance ------------- Evolutions (2) 1000 Regions Visited (4) 800 Robots Destroyed (117) 585 Value Destroyed (3634) 3634 Prototype IDs (3) 60 Alien Tech Used (0) 0 Bonus (1398) 1398 TOTAL SCORE: 7477 Bonus ------- High Alert Combat Kills 496 Follower Combat Kills 224 Entered Garrisons 200 Used RIF Installer 500 Friendly Fire -22 Cogmind --------- Core Integrity 45/550 Matter 300/300 Energy 160/160 System Corruption 2% Temperature Cool (0) Movement Core (2550) Ox50 Location -8/Garrison Parts ------- > --- POWER (1) -------- Light Nuclear Core > --- PROPULSION (6) --- (None) > --- UTILITY (2) ------ Cargo Storage Unit > --- WEAPON (2) ------- Wave Gun Heavy Assault Rifle > --- INVENTORY (30) --- Light Nuclear Core Light Nuclear Core Light Treads Light Treads Improved Heat Sink High-capacity Battery (250) Weight Redist. System Visual Processing Unit Improved Sensor Array Improved Signal Interpreter Improved Signal Interpreter Terrain Scanner Improved Terrain Scanner Terrain Scan Processor Seismic Detector Transport Network Coupler Recoil Nullifier Improved Transmission Jammer ECM Suite Hardened Light Armor Plating Hardened Light Armor Plating Hardened Light Armor Plating Hardened Medium Armor Plating Hardened Medium Armor Plating Dynamic Insulation System Long-range Tractor Beam Grenade Launcher Improved Remote Datajack Peak State ------------ > --- POWER ------------ Light Nuclear Core > --- PROPULSION ------- Armored Wheel Armored Wheel Armored Wheel Armored Wheel Armored Wheel Armored Wheel > --- UTILITY ---------- Cargo Storage Unit > --- WEAPON ----------- Long-range Proton Cannon Blade Saw > --- INVENTORY -------- Light Nuclear Core Light Nuclear Core Light Nuclear Core Improved Heat Sink High-capacity Battery Weight Redist. System Visual Processing Unit Improved Sensor Array Improved Signal Interpreter Improved Signal Interpreter Terrain Scanner Improved Terrain Scanner Terrain Scan Processor Seismic Detector Transport Network Coupler Improved Transmission Jammer ECM Suite Hardened Light Armor Plating Hardened Light Armor Plating Hardened Light Armor Plating Hardened Medium Armor Plating Hardened Medium Armor Plating Dynamic Insulation System Long-range Tractor Beam Wave Gun Heavy Phase Cannon Heavy Assault Rifle Grenade Launcher Improved Remote Datajack Mining Laser [Rating: 34] Favorites ----------- Power Light Nuclear Core Engine Light Ion Engine Power Core Light Nuclear Core Propulsion Carbon-fiber Leg Leg Carbon-fiber Leg Wheel Wheel Utility Cargo Storage Unit Device Tractor Beam Storage Cargo Storage Unit Weapon Improved Medium Laser Energy Gun Improved Medium Laser Energy Cannon Ion Cannon Ballistic Gun Assault Rifle Launcher Grenade Launcher Slashing Weapon Blade Saw Build | -11 -10 -9 -8 -8 ------- Run | Yrd Mat Mat Mat Gar Slots Evolved 4 | . . 2 2 . Power . | . . . . . Propulsion 4 | . . 2 2 . Utility . | . . . . . Weapon . | . . . . . Parts Attached 78 | 4 9 10 27 28 Power 14 | . 2 2 5 5 Engine 9 | . 2 2 4 1 Core 5 | . . . 1 4 Reactor . | . . . . . Propulsion 42 | 4 3 6 17 12 Treads . | . . . . . Leg 7 | . . . 7 . Wheel 35 | 4 3 6 10 12 Hover . | . . . . . Flight . | . . . . . Utility 3 | . 3 . . . Device 2 | . 2 . . . Storage 1 | . 1 . . . Processor . | . . . . . Hackware . | . . . . . Protection . | . . . . . Artifact . | . . . . . Weapon 19 | . 1 2 5 11 Energy Gun 8 | . 1 1 2 4 Energy Cannon 4 | . . . . 4 Ballistic Gun 5 | . . 1 3 1 Ballistic Cannon . | . . . . . Launcher 1 | . . . . 1 Special Weapon . | . . . . . Impact Weapon . | . . . . . Slashing Weapon 1 | . . . . 1 Piercing Weapon . | . . . . . Special Melee Weapon . | . . . . . Unidentified Prototypes 3 | . . . 3 . Parts Lost 31 | . 3 6 9 13 Power 5 | . . 1 1 3 Propulsion 19 | . 1 4 6 8 Utility 1 | . 1 . . . Weapon 6 | . 1 1 2 2 Highest Loss Streak 9 | . 3 5 8 9 To Critical Strikes . | . . . . . Average Slot Usage (%) 83 | . 86 82 82 83 Engine 6 | . 14 10 5 1 Core 3 | . . . 2 7 Leg 16 | . . . 12 30 Wheel 25 | . 27 38 35 17 Storage 10 | . 14 11 9 9 Energy Gun 8 | . 13 11 7 4 Energy Cannon 1 | . . . . 3 Ballistic Gun 8 | . 14 10 9 4 Slashing Weapon 2 | . . . . 5 Naked Turns . | . . . . . Heaviest Build 156 | 13 148 149 154 156 Greatest Support 86 | 26 26 46 86 86 Greatest Overweight (x) 50 | 1 5 7 14 50 Average Overweight (x) 2 | . 3 3 2 1 Largest Inventory Capacity 30 | 8 30 30 30 30 Average Capacity 28 | 8 25 30 30 30 Most Carried 30 | 8 30 30 30 30 Average Carried 25 | 6 17 25 29 29 Final Capacity 30 | 8 30 30 30 30 Final Carried 30 | 8 27 30 30 28 Class Distribution -------------------- 82% | Hauler-Mutant 10% | Scavenger-Mutant 6% | Mutant Dominant Class ---------------- Hauler-Mutant | -10/Materials Hauler-Mutant | -9/Materials Hauler-Mutant | -8/Materials Hauler-Mutant | -8/Garrison Resources | -11 -10 -9 -8 -8 ----------- Run | Yrd Mat Mat Mat Gar Matter Collected 1836 | 244 364 233 568 427 Remotely 76 | . 76 . . . Salvage Created 5103 | 154 1062 680 1524 1683 Parts 262 | 7 58 40 82 75 Haulers Intercepted 6 | . 2 2 2 . Recyclers Shooed 4 | . 2 . 2 . Parts Field Recycled . | . . . . . Retrieved Matter . | . . . . . Parts Self-Destructed . | . . . . . Prevented . | . . . . . Kills | -11 -10 -9 -8 -8 ------- Run | Yrd Mat Mat Mat Gar Combat Hostiles Destroyed 69 | . 10 10 22 27 Melee 8 | . . . . 8 Guns 50 | . 10 10 22 8 Cannons 10 | . . . . 10 Classes Destroyed 15 | 2 6 1 2 4 Worker 14 | . 9 1 4 . Builder 5 | . 1 . 4 . Tunneler 7 | 4 1 1 1 . Hauler 6 | . 2 2 2 . Recycler 8 | 1 3 1 3 . Mechanic 1 | . 1 . . . Watcher 7 | . 3 3 . 1 Swarmer 12 | . . . 4 8 Cutter 2 | . . . . 2 Grunt 32 | . 10 8 9 5 Brawler 2 | . . . . 2 Duelist 2 | . . . . 2 Sentry 17 | . . 2 8 7 Specialist 1 | . . . . 1 Hunter 1 | . . . 1 . Best Kill Streak 10 | 3 10 6 7 7 Combat Bots Only 7 | . 6 4 6 7 Max Kills in Single Turn 2 | 1 2 2 1 2 Gunslinging 1 | . . . . 1 Exploded . | . . . . . Melee 1 | . . . . 1 Uniques/NPCs Destroyed . | . . . . . Combat | -11 -10 -9 -8 -8 -------- Run | Yrd Mat Mat Mat Gar Hostile Shots Fired 524 | . 65 78 136 245 Missed 130 | . 14 23 35 58 Damage Taken 4518 | . 493 524 1161 2340 Core 675 | . 94 76 211 294 Absorbed by Shields . | . . . . . Ignored by Resistances 1323 | . 148 162 336 677 Core Remaining (%) 81 | 100 62 81 . . Volleys Fired 359 | 8 82 51 100 118 Largest 2 | 2 2 2 2 2 Hottest 112 | 60 60 79 81 112 Shots Fired 599 | 16 162 96 183 142 Gun 517 | 16 162 96 183 60 Cannon 79 | . . . . 79 Launcher 3 | . . . . 3 Special . | . . . . . Kinetic 263 | 8 82 47 97 29 Thermal 302 | 8 80 49 64 101 Explosive 3 | . . . . 3 Electromagnetic 31 | . . . 22 9 Robot Hit Streak 36 | 7 23 36 26 23 Robot Miss Streak 5 | 1 2 5 3 3 Penetration Max . | . . . . . Secondary Targets 8 | . 3 . 3 2 Max Gunslinging Chain 1 | . 1 . 1 1 Shots Hit Robots 532 | 12 136 80 146 158 Core Hits 214 | 6 53 30 63 62 Critical Kills . | . . . . . Critical Parts Destroyed 4 | . 3 . 1 . Critical Strikes 41 | . 3 3 5 30 Burn 8 | . . 3 4 1 Destroy 4 | . 3 . 1 . Corrupt 1 | . . . . 1 Sever 28 | . . . . 28 Melee Attacks 107 | . . . . 107 Impact . | . . . . . Slashing 107 | . . . . 107 Piercing . | . . . . . Sneak Attacks 1 | . . . . 1 Combat Hostiles . | . . . . . Follow-up Attacks . | . . . . . Damage Inflicted 8742 | 148 1615 1041 2409 3529 Guns 5797 | 148 1615 1041 2367 626 Cannons 777 | . . . . 777 Explosions 42 | . . . 42 . Melee 2118 | . . . . 2118 Ramming 8 | . . . . 8 Kinetic 2810 | 74 844 533 1113 246 Thermal 3171 | 74 771 508 920 898 Explosive . | . . . . . Electromagnetic 635 | . . . 376 259 Impact . | . . . . . Slashing 2118 | . . . . 2118 Piercing . | . . . . . Highest Corruption 2 | . 1 . . 2 Average Corruption 1 | . 1 . . 1 Corruption Purged . | . . . . . Corruption Blocked . | . . . . . Effects 26 | . 8 . . 18 Message Errors 2 | . . . . 2 Matter Fused 5 | . 3 . . 2 Heat Flow Errors 3 | . . . . 3 Energy Discharges 7 | . 3 . . 4 Parts Fused 1 | . . . . 1 Data Loss (minor) 5 | . 1 . . 4 Data Loss (major) 1 | . . . . 1 Misfires 1 | . . . . 1 Alerts 1 | . 1 . . . Overload Shots . | . . . . . Overflow Damage 31 | . . . 4 27 Projectiles 5 | . . . . 5 Explosions 4 | . . . 4 . Melee 22 | . . . . 22 Knockbacks . | . . . . . Impact . | . . . . . Kinetic . | . . . . . Secondary . | . . . . . Self-Inflicted Damage 42 | . . . 38 4 Shots 1 | . . . 1 . Rammed 1 | . . . . 1 Targets Rammed 1 | . . . . 1 Kicked . | . . . . . Crushed . | . . . . . Highest Temperature 514 | . 145 174 189 514 Average Temperature 69 | . 55 43 49 97 Received Heat Transfer 2535 | . 357 351 621 1206 Effects 6 | . . . . 6 Shutdowns 2 | . . . . 2 Energy Bleed 1 | . . . . 1 Interference 2 | . . . . 2 Short Circuit 1 | . . . . 1 Siege Activations . | . . . . . Robots Corrupted 1 | . . . . 1 Combat Hostiles 1 | . . . . 1 Parts Fried 4 | . . . 3 1 Impact Corruptions . | . . . . . Robots Melted . | . . . . . Combat Hostiles . | . . . . . Parts Melted 8 | . 2 . 4 2 Heat Transferred 7223 | 175 1750 1474 2344 1480 Parts Sabotaged . | . . . . . Parts Stolen . | . . . . . Parts Stripped . | . . . . . Power Chain Reactions 1 | . . . 1 . Alert | -11 -10 -9 -8 -8 ------- Run | Yrd Mat Mat Mat Gar Peak Influence 1696 | 25 224 260 432 1696 Initial 200 | . 13 . 31 200 Average 456 | 13 69 125 256 834 Maximum Alert Level 5 | . 1 1 2 5 Low Security (%) 37 | 100 99 81 19 . Level 1 29 | . . 18 76 28 Level 2 7 | . . . 4 14 Level 3 13 | . . . . 29 Level 4 12 | . . . . 27 Level 5 . | . . . . . High Security . | . . . . . Max Security . | . . . . . Squads Dispatched 10 | . 1 1 8 . Investigation 1 | . 1 . . . Extermination . | . . . . . Reinforcement 2 | . . 1 1 . Assault . | . . . . . Garrison 7 | . . . 7 . Intercept . | . . . . . Searches Triggered . | . . . . . Construction Impeded 1 | . . . 1 . Haulers Reinforced . | . . . . . Active Scanning Responses . | . . . . . Cargo Convoy Interrupts . | . . . . . Stealth | -11 -10 -9 -8 -8 --------- Run | Yrd Mat Mat Mat Gar Distress Signals 6 | . 3 1 2 . Communications Jammed . | . . . . . Distress Signals . | . . . . . Times Spotted 96 | . 18 15 25 38 Peak Tracking Total 6 | . 5 4 6 6 Tactical Retreats 3 | . . . . 3 Traps | -11 -10 -9 -8 -8 ------- Run | Yrd Mat Mat Mat Gar Traps Triggered 11 | . 3 . . 8 Indirectly . | . . . . . Trap Hack Attempts . | . . . . . Triggered . | . . . . . Disarmed . | . . . . . Reprogrammed . | . . . . . Reused . | . . . . . Traps Extracted . | . . . . . Installed . | . . . . . Triggered . | . . . . . Machines | -11 -10 -9 -8 -8 ---------- Run | Yrd Mat Mat Mat Gar Machines Disabled 7 | . . . . 7 Max in Single Turn 2 | . . . . 2 Garrison Relay 3 | . . . . 3 Phase Generator 1 | . . . . 1 Machines Repaired . | . . . . . Machines Dismantled . | . . . . . Machines Sabotaged . | . . . . . Overloaded Fab Kills . | . . . . . Hacking | -11 -10 -9 -8 -8 --------- Run | Yrd Mat Mat Mat Gar Machines Accessed 11 | . 5 1 2 3 Terminals 10 | . 5 1 1 3 Fabricators . | . . . . . Repair Stations . | . . . . . Recycling Units . | . . . . . Scanalyzers . | . . . . . Garrison Access 1 | . . . 1 . Total Hacks 21 | . 9 3 4 5 Successful 13 | . 7 1 3 2 Failed 8 | . 2 2 1 3 Catastrophic 2 | . . 1 . 1 Database Lockouts . | . . . . . Manual 13 | . 8 3 2 . Terminals 19 | . 9 3 2 5 Fabricators . | . . . . . Repair Stations . | . . . . . Recycling Units . | . . . . . Scanalyzers . | . . . . . Garrison Access 2 | . . . 2 . Terminal Hacks 4 | . 2 . . 2 Open Door 1 | . . . . 1 Emergency Access Points 1 | . . . . 1 Terminal Index 1 | . 1 . . . Recycling Unit Index 1 | . 1 . . . Fabricator Hacks . | . . . . . Repair Station Hacks . | . . . . . Recycling Unit Hacks . | . . . . . Scanalyzer . | . . . . . Garrison Access Hacks 2 | . . . 2 . Unlock Access 1 | . . . 1 . Coupler Status 1 | . . . 1 . Unauthorized Hacks 7 | . 5 1 1 . Terminals 7 | . 5 1 1 . Botnet 7 | . 5 1 1 . Fabricators . | . . . . . Repair Stations . | . . . . . Recycling Units . | . . . . . Scanalyzers . | . . . . . Garrison Access . | . . . . . Data Cores Recovered . | . . . . . Used . | . . . . . Hacking Detections 6 | . 2 1 1 2 Full Trace Events 1 | . . . . 1 Feedback Events . | . . . . . Feedback Blocked . | . . . . . Robot Schematics Acquired . | . . . . . Robots Built . | . . . . . Authchips . | . . . . . Time . | . . . . . Total Robot Build Rating . | . . . . . Part Schematics Acquired . | . . . . . Parts Built . | . . . . . Authchips . | . . . . . Time . | . . . . . Total Part Build Rating . | . . . . . Parts Repaired . | . . . . . Time . | . . . . . Parts Recycled . | . . . . . Recycled Matter . | . . . . . Retrieved Matter . | . . . . . Retrieved Components . | . . . . . Parts Scanalyzed . | . . . . . Part Schematics Acquired . | . . . . . Parts Damaged . | . . . . . Bothacking | -11 -10 -9 -8 -8 ------------ Run | Yrd Mat Mat Mat Gar Used RIF Installer 1 | . . . . 1 Robots Hacked . | . . . . . Non-combat . | . . . . . Combat . | . . . . . Robot Hacks Applied . | . . . . . Relay Couplers Released 10 | . . . . 10 Machine Destruction 10 | . . . . 10 Fabnet Peak Effective % . | . . . . . Robots Rewired 9 | . . . . 9 Allies Hacked . | . . . . . Hacks Repelled . | . . . . . Allies | -11 -10 -9 -8 -8 -------- Run | Yrd Mat Mat Mat Gar Total Allies 9 | . . . . 9 Largest Group 4 | . . . . 4 Highest-Rated Group 72 | . . . . 72 Highest-Rated Ally 31 | . . . . 31 Total Orders . | . . . . . Ally Attacks 58 | . . . . 58 Total Damage 1159 | . . . . 1159 Kills 8 | . . . . 8 Allies Corrupted . | . . . . . Allies Melted . | . . . . . Intel | -11 -10 -9 -8 -8 ------- Run | Yrd Mat Mat Mat Gar Robot Analysis Total . | . . . . . Derelict Logs Recovered . | . . . . . Drone Launches . | . . . . . Drone Recoveries . | . . . . . Exploration | -11 -10 -9 -8 -8 ------------- Run | Yrd Mat Mat Mat Gar Turns Passed 5334 | 87 1265 544 1028 2410 Spaces Moved 2232 | 40 634 274 448 836 Core 8 | . . . . 8 Treads . | . . . . . Legs 547 | 5 . . 98 444 Wheels 1677 | 35 634 274 350 384 Hover . | . . . . . Flight . | . . . . . Fastest Speed 80 | 80 80 125 110 120 Average Speed 154 | 91 143 134 137 181 Slowest Speed 2550 | 120 165 185 290 2550 Overloaded Moves . | . . . . . Propulsion Burnouts . | . . . . . Robots Hopped . | . . . . . Cave-ins Triggered . | . . . . . Exploration Rate (%) 42 | 4 79 24 27 76 Regions Visited 4 Branch Regions . Pre-discovered Areas . | . . . . . Known Exits Taken 1 | . . . 1 . Unknown Exits Taken 3 | 1 1 1 . . Scrap Searched . | . . . . . Spaces Dug . | . . . . . Terrain Destroyed 54 | . . . 3 51 Melee . | . . . . . Projectile . | . . . . . AOE 54 | . . . 3 51 Terrain Rammed . | . . . . . Walls Destroyed . | . . . . . Machines Disabled . | . . . . . Actions | -11 -10 -9 -8 -8 --------- Run | Yrd Mat Mat Mat Gar Total 3362 | 78 831 353 706 1394 Wait 358 | 19 58 4 65 212 Move 2229 | 39 633 273 448 836 Hop . | . . . . . Pick Up 101 | 3 35 13 30 20 Fast Attach 26 | 2 3 . 13 8 Attach 26 | . 2 8 8 8 Detach . | . . . . . Swap 26 | 2 4 2 6 12 Drop 83 | 5 14 2 36 26 Fire 359 | 8 82 51 100 118 Melee 107 | . . . . 107 Ram 1 | . . . . 1 Kick . | . . . . . Crush . | . . . . . Escape Stasis 17 | . . . . 17 Rewire 29 | . . . . 29 Trap . | . . . . . Miscellaneous . | . . . . . Route ------- -11/Scrapyard -10/Materials (discovered 4 exits: *Mat x2 / [*Min x2]) -9/Materials (discovered 2 exits: *Mat / [*Min]) -8/Materials -8/Garrison (discovered 2 exits: [*Mat x2]) History --------- Turn | Location | Event 1 | -11/Scrapyard | Discovered new exit (range 3) 88 | -11/Scrapyard | Entered Materials 313 | -10/Materials | Build established: Mutant 317 | -10/Materials | Lost 3 parts (1n1u1w) 391 | -10/Materials | Discovered new exit (range 7) 646 | -10/Materials | Discovered new exit (range 8) 660 | -10/Materials | Build established: Hauler-Mutant 911 | -10/Materials | Discovered new exit (range 8) 1321 | -10/Materials | Discovered new exit (range 11) 1353 | -10/Materials | Entered another Materials area 1353 | -9/Materials | Evolved 2 slots: Propulsion x2 1400 | -9/Materials | Discovered new exit (range 16) 1602 | -9/Materials | Lost 5 parts (1p3n1w) 1882 | -9/Materials | Discovered new exit (range 13) 1897 | -9/Materials | Entered another Materials area 1897 | -8/Materials | Evolved 2 slots: Propulsion x2 1921 | -8/Materials | Garrison activated, responded to threat 1976 | -8/Materials | Build established: Scavenger-Mutant 2118 | -8/Materials | Lost 8 parts (1p5n2w) 2241 | -8/Materials | Garrison activated, responded to threat 2476 | -8/Materials | Garrison activated, responded to threat 2590 | -8/Materials | Garrison activated, responded to threat 2867 | -8/Materials | Garrison activated, responded to threat 2925 | -8/Materials | Identified exit to Garrison 2925 | -8/Materials | Entered Garrison 2966 | -8/Garrison | Build established: Hauler-Mutant 3133 | -8/Garrison | Triggered checkpoint 3228 | -8/Garrison | Garrison Relay disabled 3403 | -8/Garrison | Triggered checkpoint 3659 | -8/Garrison | Destroyed 7 combat bots 3685 | -8/Garrison | Triggered checkpoint 3876 | -8/Garrison | Discovered new exit (range 13) 3913 | -8/Garrison | Triggered checkpoint 3938 | -8/Garrison | Garrison Relay disabled 4085 | -8/Garrison | Phase Generator disabled 4138 | -8/Garrison | Installed Relay Interface Framework 4535 | -8/Garrison | Core integrity fell below 50% 4549 | -8/Garrison | Triggered checkpoint 4625 | -8/Garrison | Discovered new exit (range 15) 4661 | -8/Garrison | Triggered checkpoint 4695 | -8/Garrison | Garrison Relay disabled 4766 | -8/Garrison | Lost 4 allies 4771 | -8/Garrison | Lost 3 parts (1p2n) 4947 | -8/Garrison | Triggered checkpoint 4999 | -8/Garrison | Triggered checkpoint 5092 | -8/Garrison | Core integrity fell below 20% 5134 | -8/Garrison | Lost 9 parts (1p6n2w) 5335 | -8/Garrison | Self-destructed Last Messages --------------- 05102_ Destroyed Beam Rifle. 05103_ Acquired 3 matter. 05103_ Arm. Wheel destroyed. 05105_ Y-45 Defender destroyed. 05106_ Overheating: System interference. 05106_ Wave Gun temporarily disabled. 05106_ Hvy. Assault Rifle temporarily disabled. 05106_ Acquired 3 matter. 05109_ System corrupted: Energy discharge (-13). 05114_ Acquired 10 matter. 05115_ Critical hit (Burn: +37). 05125_ Power failure, Lgt. Nuclear Core shutdown. 05127_ G-47 Trooper destroyed. 05140_ System corrupted: Component data lost. 05175_ ALERT: Garrison interior compromised. 05180_ Acquired Lgt. Treads. 05276_ PTTRYE/QHWC9QN O=Q0DDA 05291_ System corrupted: Heat flow error (+137). 05325_ ALERT: Garrison interior compromised. Map ----- +----------------------------------------------------+ | ??????????????????????????????????????????????#" | | ??????????????????????????????????????????????#"|= | | ??????????????????????????????????????????????#"[! | | ??????????????????????????????????????????????#"=[ | | ??????????????????????????????????????????????#"]! | | ??????????????????????????????????????????????###= | | ????????????????????????????????????????????????## | | ?????????????????????????????????????????????????? | | ?????????????????????????????????????????????????? | | ????????????????????????????????????????????????## | | ?????????????????????##?????????????????????????#" | | ?#??????????????????? ?????????????????????????#" | | ????????????????????# #???????????????#######??# | | ????????????????????# ???????????????#!% ==#??#" | | ????????????????????# ###?????????????# =%* #??#" | | ???????????????????? # #?????????????# * #??## | | ????????????????????# # #?????????????## ###???? | | ?????#???????????#### # #?????????????#T #?????? | | ?????????????????#" # # #?????????????## ##????## | | ??????????????????" #??????????????# #######% | | ??????????????????? ???????????????# # =%= | | ???????????????????? ????????????????# # #####= | | ????????????????????# #????????????????# # #???## | | ????????????????????#!!#????????????????# # ###### | | ???????# ###########%%###########??????# | | ???????# !%%!@=!= #####??# | | ???????# = *=]!%[[ #??# | | ????????##### #######!%####*### ### #??#*%=###### | | ????????????????????#%*#??#=#?# #?# #??# #????? | | ????????????????????# #??# #?# #?# #??# #????? | | ????????????????????# #??# #?# #?# #??# ###### | | ?????????????+??????# #??# #?# #?# #??# | | ????????????????????# ?? ? ### #### ###### | | ????????????????????# #?? ##?# ## ## #????? | | ????#???????????????# #?? ??## ## ## #????? | | ??#???#?????????????# #?? ??# ###### | | ????????????????????# %* | | ???????????????????? ^ ^ = | | ????????????????????## ####### ## ## ###### | | ?????????????????????? ????### ## ## ###??? | | ?????????????????????? ????# #??? | | ?????????????????????? ??? #??? | | ?????????????????????????### *#### | | ???????????????????????????# / == | | ???????????????????????????### ## ## #####* | | ????????????????????########## ## ## #####/ | | ????????????????????# " ^ | | ????????????????????# " | | ????????????????????# ####### [[ ##### | | ????????????????????# #?????# =%## ### ##???# | +----------------------------------------------------+ Best States ------------- Heat Dissipation 31 Energy Generation 14 Energy Capacity 280 Matter Stores 300 Matter Capacity 300 Sight Range 16 Robot Scan Range 14 Terrain Scan Density 10 Resistance: KI 20 Resistance: TH 20 Resistance: EX 20 Resistance: EM 20 Resistance: I 20 Resistance: S 20 Resistance: P 20 Evasion (%) 44 Offensive Hacking 10 Item Schematics ----------------- None Robot Schematics ------------------ None Fabricated ------------ Nothing Alien Tech Used ----------------- None Achievements -------------- None Challenges ------------ None Game ------ Seed SlugPlasmaShielding Manual? 0 Play Time 00:40:17 Cumulative 112.4 hours Start 2024.08.01 @ 16:14:56 End 2024.08.01 @ 21:06:00 Sessions 3 Manual Loads 0 Difficulty Adventurer Special Mode None Game No. 157 Rogue 0 Adventurer 157 Explorer 0 Win Type - Total 0 Types 0/0/0/0/0/0/0/0/0 Lore% 47 Gallery% 52 Achievement% 37 Wizard Run 0 Options --------- Layout 2 ASCII 0 Keyboard 0 Movement Mouse Keybinds 0 Fullscreen 2 Font 48/Terminus Map View 50x44 Zoom Use 0% Tactical HUD 1 Map Filters NONE Filters NONE Steam 1 RUN: a4a70950-148d-4262-a9f3-2b9cf9d5ed05